[Event "FIDE Open World Rapid 2024"]
[Site "New York"]
[Date "2024.12.27"]
[Round "6.7"]
[White "Sevian, Samuel"]
[Black "Duda, Jan-Krzysztof"]
[Result "1/2-1/2"]
[ECO "D00"]
[WhiteElo "2696"]
[BlackElo "2740"]
[Annotator "TA"]
[PlyCount "153"]
[EventDate "2024.12.14"]
[EventType "swiss"]
[EventCountry "USA"]
[SourceTitle "playchess.com"]
[Source "ChessBase"]
[SourceQuality "1"]
[TimeControl "900+10"]

{[%evp 9,153,10,15,0,0,-8,0,-3,-2,-3,0,0,0,-12,-7,-26,-22,-24,-20,-25,-20,-16,-23,-23,-18,-43,-49,-33,-42,-104,-101,-106,-104,-115,-108,-117,-105,-142,-136,-124,-102,-111,-108,-112,-114,-117,-116,-191,-162,-225,-114,-141,-112,-222,-221,-210,-162,-170,-171,-172,-180,-341,-338,-493,-493,-477,-476,-442,-346,-846,-833,-945,-924,-883,-883,-29976,-29977,-29979,-1972,-1638,-1654,-4714,-1503,-1635,-1513,-1737,-1706,-29990,-2541,-4698,-3032,-6187,-5940,-6079,-3186,-2732,-2364,-5795,-9180,-6532,-9533,-29979,-29980,-29983,-29982,-29982,-29983,-29983,-29980,-29980,-29981,-29981,-29982,-29981,-29976,-29982,-29977,-29977,-29967,-29968,0,-29972,-29972,-29969,-29972,-29973,-5695,-5636,0,-29974,-29975,-29974,-29975,-29963,-5137,-12831,-12755,-4690,-5507,-29960,-29960,-12845,-12319,-6195,0,-1428]} 1. d4 {[%emt 0:00:03]} Nf6 {[%emt 0:00:03]} 2. Nc3 {[%emt 0:00:02]} d5 {[%emt 0:00:05]} 3. Bf4 {[%emt 0:00:02]} c5 {[%emt 0:00:16]} 4. e3 {[%emt 0:00:04]} Bg4 {[%emt 0:01:04]} 5. f3 {[%emt 0:01:21]} Bd7 {[%emt 0:00:31]} 6. Nb5 {[%emt 0:00:29]} Bxb5 {[%emt 0:00:12]} 7. Bxb5+ {[%emt 0:00:03]} Nc6 {[%emt 0:00:01]} 8. c3 {[%emt 0:00:30]} (8. dxc5 $2 Qa5+ 9. c3 Qxb5 $19) 8... e6 {[%emt 0:00:07]} 9. Ne2 {[%emt 0:01:08]} a6 {[%emt 0:03:02]} 10. Bxc6+ {[%emt 0:04:02]} bxc6 {[%emt 0:00:02]} 11. O-O {[%emt 0:00:02]} Be7 {[%emt 0:00:50]} 12. Qa4 {[%emt 0:00:30]} Qb6 {[%emt 0:00:12]} 13. b4 {[%emt 0:03:32]} cxb4 {[%emt 0:02:55]} 14. cxb4 {[%emt 0:00:02]} O-O {[%emt 0:00:02][%cal Oa6a5]} 15. Rfc1 {[%emt 0:00:01]} Rfc8 {[%emt 0:00:15][%cal Oa6a5]} 16. Rab1 {[%emt 0:00:02]} Nd7 {[%emt 0:00:57][%cal Bf6d7,Bd7b6,Bb6c4][%mdl 32]} 17. Bg3 {[%emt 0:00:37]} Qb7 {[%emt 0:00:23]} 18. Nc3 {[%emt 0:00:22]} Nb6 {[%emt 0:00:47]} 19. Qc2 {[%emt 0:00:26]} (19. Qd1 $1 $15) 19... Nc4 $17 {[%emt 0:00:05][%csl LRb4,LRe3]} 20. Qd3 {[%emt 0:00:13]} Bxb4 {[%emt 0:02:00]} 21. Na4 {[%emt 0:03:12]} Qe7 {[%emt 0:01:15]} 22. h3 {[%emt 0:00:02]} a5 {[%emt 0:00:10]} 23. Kh2 {[%emt 0:00:04]} h6 {[%emt 0:00:22]} 24. Rb3 {[%emt 0:00:16]} Ra7 {[%emt 0:01:52]} 25. e4 {[%emt 0:00:01]} h5 {[%emt 0:00:59]} 26. Rc2 {[%emt 0:01:14]} h4 {[%emt 0:00:43]} 27. Bf2 {[%emt 0:00:01]} Qg5 {[%emt 0:00:07]} 28. a3 {[%emt 0:00:55]} (28. Kh1 $17) 28... Bd6+ {[%emt 0:00:10]} 29. Kh1 {[%emt 0:00:01] [#]} (29. e5 $142 Bf8 30. Nb6) 29... Rac7 {[%emt 0:00:15]} (29... Raa8 $1 $19 {...Rcb8 is the strong threat.} 30. e5 Bf8) 30. e5 {[%emt 0:00:18]} Be7 {[%emt 0:00:09]} 31. Nb6 {[%emt 0:00:24]} (31. Bg1 $17 {is a better defense.}) 31... Nxb6 $19 {[%emt 0:00:13]} 32. Rxb6 {[%emt 0:00:02]} g6 {[%emt 0:00:13]} 33. Be3 {[%emt 0:00:19] [#]} Qf5 $1 {[%emt 0:00:09]} 34. Qxf5 {[%emt 0:00:01]} gxf5 {[%emt 0:00:01]} 35. Rc3 $2 {[%emt 0:00:00]} (35. a4) 35... c5 {[%emt 0:00:07]} 36. Ra6 {[%emt 0:00:37]} (36. dxc5 $142 Bxc5 37. Bxc5 Rxc5 38. Rxc5 Rxc5 39. Rb8+ Kg7 40. Ra8) 36... cxd4 {[%emt 0:00:09]} 37. Rxc7 {[%emt 0:00:01]} Rxc7 {[%emt 0:00:01]} 38. Bxd4 {[%emt 0:00:02][%mdl 4096] Endgame KRB-KRB. Black is a pawn up.} Bg5 {[%emt 0:00:04]} (38... Bxa3 39. Rxa5 Be7 (39... Rc1+ $2 40. Kh2 $19) 40. Kg1 $19) 39. g4 $2 {[%emt 0:00:25]} (39. Kg1) 39... hxg3 {[%emt 0:00:08]} 40. Rxa5 {[%emt 0:00:02]} Rc4 {[%emt 0:00:07]} 41. Bb6 {[%emt 0:00:21]} d4 {[%emt 0:00:10] ( -> ...d3)} 42. Ra8+ {[%emt 0:00:09]} Kg7 {[%emt 0:00:03]} 43. Bd8 {[%emt 0:00:03]} Bxd8 {[%emt 0:00:17]} (43... Kh6 $142 44. Bxg5+ Kxg5 45. Rb8 Kf4 46. Rb3 Rc3 (46... Kxe5 $2 47. Kg2 $19) 47. Rb1 d3 (47... Kxf3 $2 48. h4 $19) (47... Kxe5 $2 48. h4 $19) (47... Rxf3 $2 48. Rb4 $19) (47... Rxa3 $2 48. Kg1 $19) 48. h4 Kxf3 (48... Rxa3 $2 49. h5 $19) 49. Rf1+ Ke2 50. Kg2 d2 (50... Rxa3 $2 51. h5 $19) 51. Ra1 f4 (51... d1=B $2 52. Kh3 $19) (51... d1=R $2 52. Ra2+ Ke1 53. Kh3 $19) (51... d1=Q 52. Rxd1 Kxd1 53. h5 f4 54. Kh3 Ke2 55. Kh4 g2 56. Kg5 g1=Q+ 57. Kf6 Rc7 58. a4 f3 59. a5 f2 60. h6 f1=Q#) 52. Rb1 f3+ (52... d1=R 53. Rxd1 Kxd1 54. h5 Ke1 55. Kh3 f3 56. Kxg3 f2+ 57. Kh4 f1=Q 58. Kg5 Rh3 59. Kh6 Qg2 60. Kh7 Rxh5#) (52... d1=N 53. h5 $19) 53. Kxg3 f2+ (53... d1=B $2 54. Rxd1 Kxd1 55. Kf2 $19) 54. Kg4 d1=N 55. Rxd1 Kxd1 56. Kg5 f1=Q (56... f1=B $2 57. Kf6 $19) 57. Kh6 Qg1 (57... Rxa3 58. Kg7 Ra8 59. h5 Qf5 60. Kh6 Qxe5 61. Kh7 Qh8#) 58. h5 Rh3 59. Kh7 Rxh5#) 44. Rxd8 {[%emt 0:00:02] KR-KR. Black is a pawn up.} f4 {[%emt 0:00:15]} 45. h4 {[%emt 0:00:09]} f6 {[%emt 0:00:38]} (45... Rc3 $142 46. Rxd4 Rxf3 (46... Rxa3 47. Rxf4 Re3 48. Rg4+ Kh6 49. Rf4 $11)) 46. Rd7+ {[%emt 0:00:24]} Kg6 {[%emt 0:00:01]} 47. h5+ {[%emt 0:00:01]} Kg5 {[%emt 0:00:19] ( -> ...Kh4)} 48. exf6 {[%emt 0:00:06]} Kxf6 {[%emt 0:00:02]} (48... Kh4 $142 49. Rb7 d3 (49... Kxh5 50. f7 $19) 50. Kg2 d2 (50... Kxh5 $2 51. f7 $19) (50... Rc2+ 51. Kg1 d2 52. Rd7 Kh3 53. Kf1 g2+ 54. Ke2 g1=Q 55. Rxd2 Qh2+ 56. Ke1 Qxd2+ 57. Kf1 Qf2#) 51. Rd7 Rc2 (51... Kxh5 52. f7 $17) 52. Kg1 Kh3 (52... Kxh5 53. f7 $17) (52... Rc1+ 53. Kg2 d1=Q 54. Rxd1 Rxd1 55. f7 Rd2+ 56. Kg1 Kh3 57. Kf1 g2+ 58. Kg1 Kg3 59. f8=Q Rd1#) 53. Kf1 Rc1+ (53... g2+ 54. Ke2 g1=Q 55. Rxd2 Qh2+ 56. Kd3 Qxd2+ 57. Ke4 Qe3#) 54. Ke2 g2 55. Rxd2 g1=Q (55... g1=B 56. Rd7 $11) 56. Rd1 Qxd1+ 57. Kf2 Qf1#) 49. h6 {[%emt 0:00:01]} e5 {[%emt 0:00:08]} 50. h7 {[%emt 0:00:25]} Rc1+ {[%emt 0:00:01]} 51. Kg2 {[%emt 0:00:01]} Rc2+ {[%emt 0:00:01]} 52. Kf1 {[%emt 0:00:08]} Rf2+ {[%emt 0:00:16]} 53. Kg1 {[%emt 0:00:28]} Rh2 $1 {[%emt 0:00:01] ( -> ...Ke6)} (53... Rxf3 54. h8=Q+ (54. h8=N $2 Rxa3 55. Kg2 Kf5 $19) 54... Ke6 55. Qh3+ (55. Qe8+ Kf5 56. Qf7+ Ke4 57. Qd5+ Kd3 58. Qxf3+ Kd2 59. Rb7 d3 60. Rb3 e4 61. Qxe4 Kc1 62. Qxd3 g2 63. Rb1#) 55... Kf6 56. Rd6+ Kg7 57. Qd7+ (57. Qg4+ Kf7 58. Qe6+ Kf8 59. Qf6+ Kg8 60. Rd8+ Kh7 61. Rh8#) 57... Kh8 58. Qc8+ Kh7 59. Qb7+ Kh8 60. Rd8#) 54. Kf1 {[%emt 0:00:05]} Ke6 {[%emt 0:00:03]} 55. Rg7 {[%emt 0:00:01]} d3 {[%emt 0:00:42]} 56. Rg6+ {[%emt 0:00:12]} Kf5 {[%emt 0:00:11]} 57. Rd6 {[%emt 0:00:05]} Rxh7 {[%emt 0:00:05]} 58. Rxd3 {[%emt 0:00:02]} Rh1+ {[%emt 0:00:10]} 59. Kg2 {[%emt 0:00:01]} Rh2+ {[%emt 0:00:01]} 60. Kg1 {[%emt 0:00:03]} Ra2 {[%emt 0:00:12]} 61. Rb3 {[%emt 0:00:21]} Rd2 {[%emt 0:00:14]} 62. a4 {[%emt 0:00:09]} Ra2 {[%emt 0:00:11]} 63. Rb4 {[%emt 0:00:06]} Kg5 {[%emt 0:00:20]} 64. Rb5 {[%emt 0:00:28]} Kf5 {[%emt 0:00:01]} ({Inferior is} 64... Rxa4 65. Rxe5+ Kh4 66. Rf5 $11) 65. Rb4 $1 {[%emt 0:00:04]} Ke6 {[%emt 0:00:02]} 66. Rb6+ {[%emt 0:00:19]} Kd5 {[%emt 0:00:16]} 67. Rb4 {[%emt 0:00:18]} Ra3 {[%emt 0:00:23]} (67... Rf2 $142 68. Rb5+ Kd4 69. a5 Rxf3 70. Rb4+ Kc5 (70... Kd5 $2 71. Ra4 $19) 71. Rb8 Kd5 72. Rb2 Rf2 (72... Ra3 $2 73. Kg2 $19) 73. Rxf2 gxf2+ 74. Kxf2 e4 75. Kg2 f3+ 76. Kg3 Kc6 77. a6 Kb6 78. Kh3 e3 (78... Kxa6 79. Kg3 Kb5 80. Kf2 Kc4 81. Ke3 Kc3 82. Kf2 Kd3 83. Kg3 Ke3 84. Kg4 f2 85. Kf5 f1=Q+ 86. Ke5 Kd3 87. Ke6 e3 88. Ke5 e2 89. Kd6 e1=Q 90. Kc7 Qf7+ 91. Kc6 Qa5 92. Kd6 Qad5#) 79. Kg3 f2 (79... Kxa6 80. Kxf3 Kb7 81. Kxe3 $11) 80. Kf3 f1=Q+ (80... f1=R+ $2 81. Kxe3 Re1+ 82. Kf4 $19) 81. Kxe3 Qxa6 82. Kf4 Qa4+ 83. Kf3 Kc5 84. Kg3 Qe4 85. Kh2 Kd4 86. Kh3 Qg6 87. Kh4 Ke4 88. Kh3 Kf3 89. Kh4 Qh6#) 68. Kg2 {[%emt 0:00:03]} Ra2+ {[%emt 0:00:07]} (68... Ra1 $19 69. Rb5+ Kd6 70. Rb6+ Kd5 71. Rb5+) 69. Kg1 $1 {[%emt 0:00:03]} Rf2 {[%emt 0:00:15]} 70. Rb5+ {[%emt 0:00:29]} Kd4 {[%emt 0:00:03]} 71. Rb4+ {[%emt 0:00:06]} Kc5 {[%emt 0:00:11]} (71... Kc3 $142 72. Re4 Rxf3 73. Rxe5 Re3 74. Rg5 Kd3 75. Kg2 Ke4 76. Rg4 Re2+ 77. Kf1 Ra2 78. Rg7 Kf3 (78... Rxa4 $2 79. Rg8 $19) 79. Ke1 Kg2 (79... Rxa4 $2 80. Rg6 $19) 80. Rd7 f3 (80... Rxa4 81. Rd2+ Kh3 82. Ke2 $19) 81. Rd2+ f2+ 82. Kd1 Rxd2+ (82... Rxa4 83. Re2 Kf3 84. Kd2 Ra2+ 85. Kc3 Kxe2 86. Kd4 f1=Q 87. Ke5 Rd2 88. Ke6 g2 89. Ke7 g1=Q 90. Ke8 Qe3#) 83. Kxd2 Kf3 (83... f1=B $2 84. Ke1 $19) (83... f1=Q {gets mated.} 84. Kc3 Kh2 85. Kb4 g2 86. Kc3 g1=Q 87. a5 Qc5+ 88. Kb2 Qcc1+ 89. Kb3 Qfc4#) 84. Kd3 g2 (84... f1=B+ 85. Kd4 g2 86. Ke5 g1=Q 87. Ke6 Qb6+ 88. Ke7 Qc7+ 89. Kf6 Bc4 90. a5 Qf7+ 91. Kg5 Bd3 92. Kh4 Qf5 93. a6 Qg4#) (84... f1=Q+ 85. Kc3 g2 86. Kb4 g1=Q 87. a5 Qd4+ 88. Kb3 Qdc4+ 89. Kb2 Qfc1#) 85. Kc4 f1=Q+ (85... g1=B 86. Kd5 f1=Q 87. Kd6 Qd1+ 88. Ke6 Kg4 89. Ke7 Bc5+ 90. Ke8 Qd5 91. a5 Kg5 92. a6 Qe6+ 93. Kd8 Bb6#) 86. Kc5 g1=Q+ (86... g1=R 87. Kd5 Rg5+ 88. Ke6 Qa6+ 89. Kf7 Qh6 90. Ke8 Qh7 91. Kf8 Rg8#) 87. Kd5 Qd1+ 88. Kc6 Qa7 89. Kb5 Qdxa4#) 72. Rb5+ {[%emt 0:00:05]} Kd6 {[%emt 0:00:01]} 73. Rb6+ {[%emt 0:00:07]} Kd7 {[%emt 0:00:01]} 74. Rb3 {[%emt 0:00:08]} Ra2 {[%emt 0:00:16]} 75. Rb4 {[%emt 0:00:15]} Kc6 {[%emt 0:00:01] ( -> ...Kd5)} 76. Rc4+ {[%emt 0:00:07]} Kd5 {[%emt 0:00:20]} (76... Kd6 $142 77. Rb4 Rd2) 77. Rb4 {[%emt 0:00:12]} 1/2-1/2

[Event "FIDE Open World Rapid 2024"]
[Site "New York"]
[Date "2024.12.27"]
[Round "6.7"]
[White "Corrales Jimenez, Fidel"]
[Black "Banh Gia Huy"]
[Result "1-0"]
[ECO "C02"]
[WhiteElo "2555"]
[BlackElo "2422"]
[Annotator "ChessBase"]
[PlyCount "129"]
[EventDate "2024.12.14"]
[EventType "swiss"]
[EventCountry "USA"]
[SourceTitle "playchess.com"]
[Source "ChessBase"]
[SourceQuality "1"]
[TimeControl "900+10"]

1. e4 {[%emt 0:00:03]} e6 {[%emt 0:00:04]} 2. d4 {[%emt 0:00:02]} d5 {[%emt 0:00:01]} 3. e5 {[%emt 0:00:01]} c5 {[%emt 0:00:02]} 4. c3 {[%emt 0:00:02]} Qb6 {[%emt 0:00:01]} 5. Nf3 {[%emt 0:00:03]} Bd7 {[%emt 0:00:02]} 6. Be2 {[%emt 0:00:04]} Bb5 {[%emt 0:00:02]} 7. dxc5 {[%emt 0:00:34]} Bxc5 {[%emt 0:00:05]} 8. b4 {[%emt 0:00:06]} Bxf2+ {[%emt 0:00:02]} 9. Kf1 {[%emt 0:00:09]} Bc6 {[%emt 0:00:01]} 10. a4 {[%emt 0:01:10]} a6 {[%emt 0:00:03]} 11. a5 {[%emt 0:00:11]} Qa7 {[%emt 0:00:01]} 12. Na3 {[%emt 0:00:03]} Be3 {[%emt 0:00:16]} 13. c4 {[%emt 0:09:52]} Bxc1 {[%emt 0:04:38]} 14. Qxc1 {[%emt 0:00:02]} Ne7 {[%emt 0:02:09]} 15. b5 {[%emt 0:00:02]} axb5 {[%emt 0:00:12]} 16. cxb5 {[%emt 0:00:10]} Nd7 {[%emt 0:00:06]} 17. Nc2 {[%emt 0:00:46]} Qc5 {[%emt 0:02:05]} 18. Ncd4 {[%emt 0:00:31]} Qxc1+ {[%emt 0:00:07]} 19. Rxc1 {[%emt 0:00:03]} Rxa5 {[%emt 0:00:13]} 20. Kf2 {[%emt 0:00:02]} O-O {[%emt 0:00:56]} 21. bxc6 {[%emt 0:00:04]} bxc6 {[%emt 0:00:03]} 22. Nxc6 {[%emt 0:00:03]} Nxc6 {[%emt 0:00:15]} 23. Rxc6 {[%emt 0:00:02]} d4 {[%emt 0:00:23]} 24. Rd6 {[%emt 0:00:07]} Nxe5 {[%emt 0:00:06]} 25. Nxe5 {[%emt 0:00:16]} Rxe5 {[%emt 0:00:02]} 26. Rxd4 {[%emt 0:00:03]} h5 {[%emt 0:00:27]} 27. Rhd1 {[%emt 0:00:02]} g6 {[%emt 0:00:02]} 28. Rd7 {[%emt 0:00:04]} Rc8 {[%emt 0:00:43]} 29. Bf3 {[%emt 0:00:11]} Rc2+ {[%emt 0:00:22]} 30. Kg3 {[%emt 0:00:15]} Kg7 {[%emt 0:01:36]} 31. Re7 {[%emt 0:00:12]} Rc8 {[%emt 0:01:29]} 32. Rdd7 {[%emt 0:00:03]} Rf8 {[%emt 0:00:02]} 33. Kf4 {[%emt 0:00:32]} Rf5+ {[%emt 0:00:08]} 34. Ke4 {[%emt 0:00:03]} Kf6 {[%emt 0:00:03]} 35. h3 {[%emt 0:00:39]} Ra5 {[%emt 0:00:57]} 36. Kf4 {[%emt 0:00:21]} Ra4+ {[%emt 0:00:23]} 37. Kg3 {[%emt 0:00:04]} Rc4 {[%emt 0:00:10]} 38. Ra7 {[%emt 0:00:05]} Rcc8 {[%emt 0:00:11]} 39. Kf4 {[%emt 0:01:50]} Rce8 {[%emt 0:00:29]} 40. Rec7 {[%emt 0:01:39]} Rc8 {[%emt 0:00:07]} 41. Bc6 {[%emt 0:00:02]} Rxc7 {[%emt 0:00:08]} 42. Rxc7 {[%emt 0:00:02]} Rb8 {[%emt 0:00:06]} 43. Ke4 {[%emt 0:00:04]} Rb4+ {[%emt 0:00:54]} 44. Kd3 {[%emt 0:00:05]} Rb8 {[%emt 0:00:35]} 45. Kd4 {[%emt 0:00:04]} Rd8+ {[%emt 0:00:31]} 46. Rd7 {[%emt 0:00:19]} Rb8 {[%emt 0:00:04]} 47. Ra7 {[%emt 0:00:02]} Rd8+ {[%emt 0:00:05]} 48. Kc5 {[%emt 0:00:06]} Rd2 {[%emt 0:00:37]} 49. Be8 {[%emt 0:00:51]} Rxg2 {[%emt 0:00:02]} 50. Rxf7+ {[%emt 0:00:02]} Kg5 {[%emt 0:00:01]} 51. Bd7 {[%emt 0:00:11]} Kh4 {[%emt 0:00:59]} 52. Bxe6 {[%emt 0:00:02]} g5 {[%emt 0:00:01]} 53. Rh7 {[%emt 0:00:02]} Rc2+ {[%emt 0:00:33]} 54. Kd4 {[%emt 0:00:04]} Rg2 {[%emt 0:00:16]} 55. Bg4 {[%emt 0:00:04]} Ra2 {[%emt 0:00:10]} 56. Rxh5+ {[%emt 0:00:04]} Kg3 {[%emt 0:00:02]} 57. Rxg5 {[%emt 0:00:04]} Kh4 {[%emt 0:00:06]} 58. Rh5+ {[%emt 0:00:03]} Kg3 {[%emt 0:00:01]} 59. Rh8 {[%emt 0:00:02]} Ra4+ {[%emt 0:00:03]} 60. Ke5 {[%emt 0:00:03]} Ra5+ {[%emt 0:00:01]} 61. Kf6 {[%emt 0:00:02]} Ra4 {[%emt 0:00:03]} 62. Bf5 {[%emt 0:00:07]} Ra6+ {[%emt 0:00:06]} 63. Be6 {[%emt 0:00:02]} Rb6 {[%emt 0:00:04]} 64. h4 {[%emt 0:00:04]} Rb4 {[%emt 0:00:18]} 65. h5 {[%emt 0:00:03]} 1-0

[Event "FIDE Open World Rapid 2024"]
[Site "New York"]
[Date "2024.12.27"]
[Round "6.8"]
[White "Robson, Ray"]
[Black "Erigaisi Arjun"]
[Result "0-1"]
[ECO "D31"]
[WhiteElo "2700"]
[BlackElo "2801"]
[Annotator "TA"]
[PlyCount "83"]
[EventDate "2024.12.14"]
[EventType "swiss"]
[EventCountry "USA"]
[SourceTitle "playchess.com"]
[Source "ChessBase"]
[SourceQuality "1"]
[TimeControl "900+10"]

{[%evp 15,83,0,0,0,29,0,19,16,95,94,110,93,127,118,127,120,127,134,80,39,47,52,52,56,52,57,33,9,0,0,0,-268,-250,-336,-338,-343,-133,-145,-143,-140,-131,-142,-133,-137,-136,-142,-133,-294,-267,-266,-315,-324,-303,-326,-293,-362,-369,-505,-510,-935,-935,-839,-118,-118,-114,-6679,-5873,-29980,-29981,-29980]} 1. d4 {[%emt 0:00:46]} d5 {[%emt 0:00:02]} 2. c4 {[%emt 0:00:03]} e6 {[%emt 0:00:02]} 3. Nc3 {[%emt 0:00:26]} c6 {[%emt 0:00:03]} 4. e4 {[%emt 0:01:11]} dxe4 {[%emt 0:00:03]} 5. Nxe4 {[%emt 0:00:03]} Bb4+ {[%emt 0:00:03]} 6. Bd2 {[%emt 0:00:33][%cal Bc1d2,Bd2b4,Bb4f8,Bf8d6,Bd6e5][%mdl 32]} Qxd4 {[%emt 0:00:04]} 7. Bxb4 {[%emt 0:00:07]} Qxe4+ {[%emt 0:00:03]} 8. Ne2 {[%emt 0:02:10]} Na6 {[%emt 0:00:04] Active counter play!} 9. Bf8 {[%emt 0:00:51] aiming for Qd6.} Qg6 {[%emt 0:00:05][%cal Og8e7]} (9... Ne7 $5 10. Bxg7 Rg8 $11) 10. Bd6 {[%emt 0:06:37]} (10. Nf4 Qg5 11. Qd6 Ne7 12. h4) 10... e5 {[%emt 0:00:32]} 11. Bxe5 {[%emt 0:02:37]} Nb4 {[%emt 0:00:42]} (11... Nf6 $11) 12. Nf4 $1 $16 {[%emt 0:00:17]} Qf5 {[%emt 0:05:36]} 13. Qd6 {[%emt 0:00:12]} (13. Bxg7 {is more complex.} Nc2+ 14. Kd2 Nxa1 15. g3) 13... f6 {[%emt 0:00:42]} (13... Nc2+ $2 14. Kd2 Nxa1 15. Bxg7 (15. Bd3 Qg5 $14) 15... Qc2+ 16. Ke3 $16) 14. Bc3 $1 {[%emt 0:01:00]} (14. Qxb4 $6 Qxe5+ 15. Ne2 Ne7 $11) 14... Nc2+ {[%emt 0:04:16]} 15. Kd2 {[%emt 0:00:05]} Nxa1 {[%emt 0:00:03]} 16. Bd3 {[%emt 0:00:08] Threatening mate with Re1+.} Qd7 {[%emt 0:01:07]} 17. Re1+ {[%emt 0:00:12]} Kf7 $1 {[%emt 0:00:51]} (17... Ne7 $2 18. Bb4 O-O (18... Qxd6 $2 19. Bxd6 O-O 20. Rxe7 $18) 19. Rxe7 Qxd6 20. Bxd6 $18) 18. Qc5 {[%emt 0:00:33]} g6 {[%emt 0:02:53][%cal Og8h6]} 19. Ne6 $1 {[%emt 0:00:14]} (19. Rxa1 Qe7 20. Qd4 Nh6 $17) 19... Qxe6 $1 {[%emt 0:00:03]} (19... Qe7 $2 20. Ng5+ fxg5 21. Rxe7+ Nxe7 22. Bxh8 $18) 20. Rxe6 {[%emt 0:00:08]} (20. Rxa1 $2 Qe7 21. Qe3 Bf5 22. Bxf5 Qxe3+ (22... gxf5 $2 23. Qg3 $19) 23. Kxe3 gxf5 $19) 20... Bxe6 {[%emt 0:00:01]} 21. Qd4 {[%emt 0:00:15] Inhibits Rd8.} (21. Qd6 $5) 21... c5 {[%emt 0:00:17]} 22. Qxc5 {[%emt 0:00:10]} Rd8 $1 {[%emt 0:00:07] Dodges Qd6} 23. Ke2 $2 {[%emt 0:00:10][%mdl 8192]} (23. Qxa7 Ne7 24. Ke2 (24. Qxb7 $2 Bxc4 25. f3 Rxd3+ $19) (24. Qb6 $2 Rd7 $19) 24... Rhe8 $19) (23. Bb4 $11 {and White is okay.}) 23... Nh6 {[%emt 0:01:00]} 24. Qc7+ {[%emt 0:00:09]} (24. Qxa7 Rhe8 25. Be4 (25. Qxb7+ $2 Re7 $19) 25... Bg4+ (25... Bxc4+ $2 26. Kf3 $19) 26. f3 Rxe4+ $19) 24... Rd7 {[%emt 0:00:02]} 25. Qf4 {[%emt 0:00:03]} Bf5 $2 {[%emt 0:00:02]} (25... Ng4 $19 {has better winning chances.} 26. h3 g5) 26. Bxf5 $17 {[%emt 0:00:06]} (26. Be4 $2 g5 $19 (26... Re8 $2 27. f3 $19)) 26... Nxf5 {[%emt 0:00:02]} 27. Qc1 {[%emt 0:00:20]} ({But not} 27. g4 $2 Re8+ 28. Kf1 Rd1+ 29. Kg2 Nh4+ 30. Kg3 Rd3+ 31. f3 (31. Kxh4 $2 {loses.} g5+ $19) 31... Rxf3+ (31... Nxf3 32. Qxf6+ Kg8 33. Qg7#) 32. Qxf3 Nxf3 $19) 27... Re8+ {[%emt 0:00:19]} 28. Kf1 {[%emt 0:00:03] [#]} Red8 $1 {[%emt 0:00:13]} 29. Ke2 {[%emt 0:00:19] [#] Repels Rd1} (29. Ke1 Nd4) 29... Nd4+ $1 {[%emt 0:00:13]} 30. Bxd4 {[%emt 0:00:04]} Rxd4 {[%emt 0:00:01]} 31. g3 $2 {[%emt 0:00:16] [#]} (31. b3 $17 {was called for.}) 31... Rd1 $1 $19 {[%emt 0:00:35]} 32. Qxd1 {[%emt 0:00:10]} Rxd1 {[%emt 0:00:01]} 33. Kxd1 {[%emt 0:00:01][%mdl 4096] Endgame KN-KP} Ke6 {[%emt 0:00:01]} 34. Kd2 {[%emt 0:00:20]} Ke5 {[%emt 0:00:11] ...Kd4 would now be deadly.} 35. Kd3 {[%emt 0:00:10]} a5 {[%emt 0:00:11]} 36. b3 {[%emt 0:00:08]} g5 {[%emt 0:00:06]} 37. f3 {[%emt 0:00:10]} (37. g4 $142 Kf4 38. c5) 37... f5 {[%emt 0:00:12]} 38. Kc3 {[%emt 0:00:08]} g4 $2 {[%emt 0:00:12]} (38... f4 $19 39. g4 Kd6) 39. fxg4 $17 {[%emt 0:00:06]} fxg4 {[%emt 0:00:01]} 40. a3 $2 {[%emt 0:00:18][%mdl 8192]} (40. Kb2 $17) 40... b6 $19 {[%emt 0:00:27][%cal Oa1b3] ( -> ...Nxb3!)} 41. a4 {[%emt 0:00:10] [#]} Nxb3 $1 {[%emt 0:00:06]} 42. Kxb3 {[%emt 0:00:02]} 0-1

[Event "FIDE Open World Rapid 2024"]
[Site "New York"]
[Date "2024.12.27"]
[Round "6.8"]
[White "Ohanyan, Emin"]
[Black "Harsha Bharathakoti"]
[Result "1-0"]
[ECO "C13"]
[WhiteElo "2514"]
[BlackElo "2531"]
[Annotator "ChessBase"]
[PlyCount "55"]
[EventDate "2024.12.14"]
[EventType "swiss"]
[EventCountry "USA"]
[SourceTitle "playchess.com"]
[Source "ChessBase"]
[SourceQuality "1"]
[TimeControl "900+10"]

1. e4 {[%emt 0:00:03]} e6 {[%emt 0:00:03]} 2. d4 {[%emt 0:00:01]} d5 {[%emt 0:00:03]} 3. Nc3 {[%emt 0:00:01]} Nf6 {[%emt 0:00:03]} 4. Bg5 {[%emt 0:00:02]} dxe4 {[%emt 0:00:03]} 5. Nxe4 {[%emt 0:00:01]} Nbd7 {[%emt 0:00:03]} 6. Nf3 {[%emt 0:00:03]} h6 {[%emt 0:00:02]} 7. Bxf6 {[%emt 0:00:02]} Nxf6 {[%emt 0:00:04]} 8. Bd3 {[%emt 0:00:02]} Nxe4 {[%emt 0:05:36]} 9. Bxe4 {[%emt 0:00:02]} c5 {[%emt 0:00:01]} 10. Qe2 {[%emt 0:01:04]} Qa5+ {[%emt 0:01:17]} 11. c3 {[%emt 0:00:02]} cxd4 {[%emt 0:00:02]} 12. Nxd4 {[%emt 0:00:07]} Be7 {[%emt 0:00:51]} 13. Qb5+ {[%emt 0:00:01]} Qxb5 {[%emt 0:00:02]} 14. Nxb5 {[%emt 0:00:01]} O-O {[%emt 0:00:32]} 15. O-O-O {[%emt 0:00:02]} f5 {[%emt 0:03:19]} 16. Bc2 {[%emt 0:00:02]} Bc5 {[%emt 0:00:00]} 17. f3 {[%emt 0:00:12]} a6 {[%emt 0:02:10]} 18. Nc7 {[%emt 0:00:40]} Be3+ {[%emt 0:00:01]} 19. Kb1 {[%emt 0:00:00]} Ra7 {[%emt 0:00:00]} 20. Bb3 {[%emt 0:03:36]} Kf7 {[%emt 0:00:01]} 21. Rd6 {[%emt 0:00:20]} Ke7 {[%emt 0:00:49]} 22. Nxe6 {[%emt 0:00:08]} Rf6 {[%emt 0:01:33]} 23. Rd3 {[%emt 0:00:10]} f4 {[%emt 0:00:00]} 24. Nxf4 {[%emt 0:01:32]} Bxf4 {[%emt 0:00:46]} 25. Re1+ {[%emt 0:00:01]} Be6 {[%emt 0:00:07]} 26. g3 {[%emt 0:01:46]} a5 {[%emt 0:01:45]} 27. gxf4 {[%emt 0:00:11]} a4 {[%emt 0:00:01]} 28. Bd5 {[%emt 0:02:14]} 1-0